bitfinex/quotes_ETHUSD_20240910
["timestamp","ask_amount","ask_price","bid_price","bid_amount"]
[1725958230832,3.21450931,2362.0,2361.3,22.32414931]
[1725958231126,0.10585148,2361.9,2361.3,19.53]
[1725958232517,3.22783742,2361.6,2361.2,19.53]
[1725958232832,3.10585148,2361.9,2361.1,7.48]
[1725958232833,3.22783742,2361.4,2361.1,7.48]
[1725958232996,3.22783742,2361.6,2360.7,19.53]
[1725958233199,3.0,2361.9,2360.8,0.0846959]
[1725958233390,3.22783742,2361.9,2360.9,21.05313222]
[1725958233591,3.0,2361.8,2361.0,0.53657104]
[1725958233829,3.0,2361.8,2361.1,2.0066571]
[1725958233996,3.0,2361.8,2361.2,0.08468154]
[1725958236500,3.0,2361.8,2361.2,19.61468154]
[1725958236739,3.0,2361.8,2361.3,0.08468157]
[1725958238213,3.22783742,2361.9,2361.3,0.08468157]
[1725958238418,3.22783742,2361.9,2361.3,0.9422514]
[1725958238814,3.22783742,2361.9,2361.3,0.85756983]
[1725958239139,3.22783742,2361.9,2361.4,0.08468159]
[1725958241431,3.22783742,2361.9,2361.2,19.53]
[1725958241616,3.22783742,2361.9,2361.2,21.68366571]
[1725958241821,3.22783742,2361.9,2361.3,0.08468156]
[1725958244569,3.22783742,2361.9,2361.2,21.68366571]
[1725958244853,3.22783742,2361.9,2361.3,0.08468162]
[1725958245349,3.22783742,2361.9,2361.2,21.68366571]
[1725958245554,3.86120636,2361.9,2361.2,21.68366571]
[1725958246057,3.86120636,2361.9,2361.2,19.53]
[1725958247319,3.86120636,2361.9,2361.3,0.08468163]
[1725958248256,2.12317618,2361.9,2361.3,0.08468163]
[1725958248658,1.48980724,2361.9,2361.3,0.08468163]
[1725958250073,1.48980724,2362.1,2361.3,0.08468163]
[1725958250217,1.48980724,2362.1,2361.4,0.45179812]
[1725958250557,0.10585201,2362.0,2361.5,0.08468161]
[1725958251755,0.10585201,2362.0,2361.3,0.08468165]
[1725958251957,0.10585201,2362.0,2361.4,0.45181471]
[1725958252111,0.10585201,2362.0,2361.3,0.08468165]
[1725958252621,0.10585201,2362.0,2361.4,0.45182123]
[1725958252815,0.10585201,2362.0,2361.3,0.08468165]
[1725958253022,0.10585201,2362.0,2361.4,0.45181695]
[1725958253251,0.10585201,2362.0,2361.5,0.08468163]
[1725958253418,1.48980724,2362.1,2361.5,0.08468163]
[1725958253619,0.10585204,2362.0,2361.5,0.08468163]
[1725958253841,0.10585204,2362.0,2361.3,1.2559234]
[1725958254047,0.10585204,2362.0,2361.4,0.45182555]
[1725958254248,0.10585204,2362.0,2361.2,21.83264643]
[1725958254453,0.10585204,2362.0,2361.3,0.45181977]
[1725958254761,0.10585204,2362.0,2361.4,0.4518169]
[1725958254960,1.48980724,2362.2,2361.4,0.08468172]
[1725958255148,0.10585204,2362.1,2361.4,0.08468172]
[1725958255922,0.10585204,2362.5,2361.5,0.45180264]
[1725958256164,1.48980724,2362.4,2361.6,0.53644936]
[1725958256348,0.10583801,2362.3,2361.6,0.08467041]
[1725958257170,0.10583801,2362.3,2361.7,0.45176179]
[1725958257324,0.10583801,2362.3,2361.8,0.08467041]
[1725958258450,0.10583801,2362.3,2361.5,19.53]
[1725958258636,0.10583801,2362.3,2361.6,0.53643406]
[1725958258839,0.10583801,2362.3,2361.6,0.08467056]
[1725958259523,1.59564525,2362.4,2361.6,0.08467056]
[1725958260480,1.48980724,2362.2,2361.6,0.08467056]
[1725958263129,1.48980724,2362.2,2361.7,0.6626422]
[1725958263451,1.5956454,2362.4,2361.8,0.08467048]
[1725958263770,2.15237392,2362.4,2361.8,0.08467048]
[1725958263957,5.15237392,2362.4,2361.8,0.08467048]
[1725958264477,2.15237392,2362.4,2361.6,0.08467054]
[1725958264674,1.5956454,2362.4,2361.6,0.08467054]
[1725958265040,0.10583816,2362.4,2361.7,0.66266303]
[1725958265273,1.48980724,2362.4,2361.8,0.08467055]
[1725958266140,1.48980724,2362.4,2361.6,0.53643364]
[1725958266366,1.48980724,2362.4,2361.7,0.66265081]
[1725958266572,1.48980724,2362.4,2361.5,22.60223814]
[1725958266573,1.48980724,2362.4,2361.8,0.08467051]
[1725958267571,1.48980724,2362.4,2361.5,22.60223814]
[1725958267572,1.48980724,2362.4,2361.6,0.53643251]
[1725958267771,1.48980724,2362.4,2361.6,0.08467052]
[1725958269369,0.10583812,2362.3,2361.6,0.08467052]
[1725958269576,1.48980724,2362.2,2361.5,19.53]
[1725958269867,1.48980724,2362.2,2361.6,0.08467062]
[1725958270174,1.48980724,2362.0,2361.5,19.53]
[1725958270326,1.48980724,2361.8,2361.3,19.53]
[1725958270529,1.48980724,2362.0,2361.4,0.08468286]
[1725958271374,1.48980724,2362.0,2361.3,19.53]
[1725958271670,1.48980724,2362.0,2361.3,22.60223814]
[1725958271869,1.48980724,2362.1,2361.4,0.53648444]
[1725958272084,1.48980724,2362.1,2361.4,0.08468174]
[1725958272445,0.10585219,2362.0,2361.4,0.08468174]
[1725958273552,1.48980724,2362.1,2361.4,0.08468174]
[1725958273752,0.10585222,2362.0,2361.4,0.08468174]
[1725958274248,0.6,2362.6,2361.5,0.45177781]
[1725958274249,1.48980724,2362.3,2361.5,0.45177781]
[1725958274587,0.10585223,2362.5,2361.4,2.13505288]
[1725958274588,1.48980724,2362.1,2361.4,2.05037114]
[1725958274902,1.48980724,2362.1,2361.5,1.51925092]
[1725958275187,1.48980724,2362.1,2361.4,2.05037114]
[1725958275396,1.48980724,2362.1,2361.5,0.08467716]
[1725958275721,1.48980724,2362.1,2361.3,0.88902965]
[1725958275860,0.10584645,2362.0,2361.4,3.11597513]
[1725958276065,0.10584645,2362.0,2361.5,0.53647249]
[1725958276385,1.48980724,2362.1,2361.5,0.08468005]
[1725958276587,1.48980724,2362.1,2361.6,0.45177244]
[1725958276792,1.48980724,2362.1,2361.5,0.08468005]
[1725958277150,1.48980724,2362.1,2361.3,3.96126779]
[1725958277151,1.48980724,2362.1,2361.4,1.59843815]
[1725958277478,1.48980724,2362.1,2361.5,0.53646768]
[1725958277682,1.48980724,2362.1,2361.5,0.0846772]
[1725958278205,1.48980724,2362.1,2361.4,2.49298879]
[1725958278773,1.48980724,2361.9,2361.2,20.41902965]
[1725958278986,0.10584878,2361.8,2361.3,1.06570933]
[1725958279184,0.10584878,2361.8,2361.2,19.53]
[1725958279526,0.10584878,2361.8,2361.3,0.4518316]
[1725958279694,0.10584878,2361.8,2361.2,19.53]
[1725958279898,0.10584878,2361.8,2361.3,0.45183174]
[1725958280050,0.10584878,2361.8,2361.2,19.53]
[1725958280246,0.10584878,2361.8,2361.3,1.51781817]
[1725958280450,0.10584878,2361.8,2361.2,19.53]
[1725958281065,0.10584878,2361.8,2361.3,0.4518438]
[1725958281386,1.48980724,2361.7,2361.2,19.53]
[1725958281948,1.48980724,2361.7,2361.3,0.08468668]
[1725958283099,1.48980724,2361.9,2361.3,0.08468668]
[1725958283542,3.0,2362.4,2361.3,0.08468668]
[1725958283835,1.48980724,2362.0,2361.3,0.08468668]
[1725958284062,0.10585836,2361.9,2361.3,0.08468668]
[1725958286254,1.48980724,2361.8,2361.2,19.53]
[1725958286406,1.48980724,2361.8,2361.3,0.08468965]
[1725958287346,1.48980724,2362.0,2361.3,0.08468965]
[1725958287663,0.10586202,2361.9,2361.3,0.08468965]
[1725958288060,0.10586202,2361.9,2361.2,19.53]
[1725958288437,1.48980724,2361.8,2361.2,19.53]
[1725958288612,0.10586302,2361.7,2361.2,19.53]
[1725958290617,1.48980724,2361.8,2361.2,19.53]
[1725958291945,0.10586628,2361.7,2361.2,19.53]
[1725958292565,1.48980724,2361.8,2361.2,19.53]
[1725958292981,0.10586627,2362.2,2361.2,19.53]
[1725958293280,1.48980724,2361.9,2361.3,0.45181575]
[1725958293485,0.10585915,2361.8,2361.1,27.89902965]
[1725958293688,0.10585915,2361.8,2361.2,3.10416935]
[1725958293852,0.10585915,2361.8,2361.3,0.45181535]
[1725958294047,1.48980724,2361.9,2361.2,1.67609739]
[1725958294249,1.48980724,2362.0,2361.3,1.51273268]
[1725958294484,1.48980724,2362.0,2361.2,1.59138263]
[1725958294677,1.48980724,2362.0,2361.3,0.45181699]
[1725958294884,1.48980724,2362.0,2361.2,1.59142582]
[1725958295063,1.48980724,2362.0,2361.3,0.53650588]
[1725958295279,1.48980724,2362.0,2361.4,0.45180727]
[1725958295485,1.48980724,2362.0,2361.2,1.59135805]
[1725958295797,1.48980724,2362.0,2361.3,0.45181794]
[1725958295947,1.48980724,2362.0,2361.2,1.59140608]
[1725958296151,1.48980724,2362.0,2361.3,0.45182087]
[1725958296455,1.48980724,2361.8,2361.2,1.59138166]
[1725958296793,1.48980724,2361.6,2361.2,1.59138166]
[1725958297150,1.48980724,2361.4,2361.1,27.01]
[1725958297387,1.48980724,2361.2,2360.9,0.88902965]
[1725958297601,1.48980724,2361.0,2360.9,0.88902965]
[1725958298656,1.48980724,2361.0,2360.0,27.01]
[1725958298860,1.48980724,2360.7,2360.1,0.08472713]
[1725958299895,3.26048134,2361.7,2359.9,1.57453425]
[1725958300069,1.48980724,2361.0,2360.0,2.84913346]
[1725958300271,1.48980724,2361.0,2360.1,1.57452327]
[1725958300481,1.48980724,2361.0,2360.2,0.55]
[1725958300660,1.48980724,2361.2,2360.3,0.08471638]
[1725958300861,1.48980724,2361.2,2360.3,1.57452362]
[1725958301287,1.48980724,2361.2,2360.4,0.55]
[1725958302126,0.10589543,2361.5,2360.4,0.55]
[1725958302127,3.2295874,2361.5,2360.4,0.55]
[1725958302393,0.1058788,2361.4,2360.3,0.55]
[1725958302596,0.42883754,2361.4,2360.3,1.37295874]
[1725958302772,0.42883754,2361.4,2360.4,0.08470184]
[1725958302975,3.42883754,2361.4,2360.5,0.55]
[1725958303180,3.66584249,2361.3,2360.6,0.08470301]
[1725958303697,0.66584249,2361.3,2360.6,0.08470301]
[1725958304001,0.66584249,2361.3,2360.7,19.53]
[1725958304170,0.66584249,2361.3,2360.8,0.08470309]
[1725958308370,0.66584249,2361.3,2360.8,19.61470309]
[1725958309478,0.40946788,2361.2,2360.8,19.53]
[1725958314312,0.40946788,2361.2,2360.6,19.53]
[1725958314461,0.40946788,2361.2,2360.7,0.08470322]
[1725958315504,0.66584249,2361.3,2360.7,0.08470322]
[1725958315986,3.0,2361.4,2360.7,0.08470322]
[1725958316194,3.0,2361.6,2360.7,0.08470322]
[1725958316392,3.33546648,2361.5,2360.7,0.08470322]
[1725958316558,3.63354665,2361.4,2360.7,0.08470322]
[1725958316900,3.0,2361.4,2360.7,0.08470322]
[1725958319225,3.0,2361.4,2360.6,19.53]
[1725958320414,3.0,2361.4,2360.7,19.53]
[1725958320610,3.62295874,2361.4,2360.7,19.53]
[1725958323297,3.62295874,2361.4,2360.8,0.08470025]
[1725958324318,0.62295874,2361.4,2360.7,19.53]
[1725958324516,0.10587607,2361.7,2360.7,19.53]
[1725958324726,3.0,2361.8,2360.8,4.7743451]
[1725958325053,3.0,2361.8,2360.8,3.71464551]
[1725958325203,0.45962832,2361.7,2360.9,2.41320432]
[1725958325397,0.45962832,2361.7,2361.0,0.08469054]
[1725958325734,2.05590763,2361.7,2361.0,0.08469054]
[1725958326042,1.49041744,2361.5,2360.9,19.53]
[1725958326422,1.49041744,2361.1,2360.9,19.53]
[1725958326618,1.49041744,2361.1,2360.4,27.01]
[1725958326949,1.49041744,2360.9,2360.4,19.53]
[1725958330245,3.23067976,2361.0,2360.4,19.53]
[1725958330412,3.0,2360.9,2360.4,19.53]
[1725958330612,3.0,2360.9,2360.5,0.08471836]
[1725958330818,3.10589795,2361.1,2360.5,0.08471836]
[1725958332502,3.10589795,2361.1,2360.3,0.08471837]
[1725958332706,0.63365777,2361.0,2360.3,0.08471837]
[1725958333249,0.63365777,2361.0,2360.3,0.74773709]
[1725958333421,3.0,2361.1,2360.4,0.55]
[1725958333607,3.23067976,2361.4,2360.5,0.08470903]
[1725958333608,3.0,2361.3,2360.5,0.08470903]
[1725958333809,3.32306798,2361.3,2360.5,0.08470903]
[1725958334437,3.0,2361.3,2360.5,0.08470903]
[1725958334619,0.50559076,2361.6,2360.6,1.60981672]
[1725958334958,0.50559076,2361.6,2360.7,19.61469623]
[1725958335101,0.50559076,2361.6,2360.8,2.42423147]
[1725958335306,0.50559076,2361.6,2360.9,19.53]
[1725958335516,3.0,2361.8,2361.0,0.08469043]
[1725958336049,3.0,2361.8,2361.0,19.61469043]
[1725958337653,6.23067976,2361.8,2361.0,19.61469043]
[1725958337949,3.23067976,2361.6,2361.0,19.53]
[1725958338559,0.62306798,2361.7,2361.1,0.08468994]
[1725958338761,3.0,2361.7,2361.1,0.08468994]
[1725958339050,3.10586245,2361.7,2361.1,0.08468994]
[1725958339254,3.10586245,2361.7,2360.9,19.53]
[1725958339411,4.16433398,2361.6,2360.9,19.53]
[1725958339608,3.10587277,2361.5,2360.9,19.53]
[1725958340563,3.23067976,2361.4,2360.9,19.53]
[1725958340849,3.23067976,2361.2,2360.9,19.53]
[1725958341059,3.33365617,2361.1,2360.4,27.01]
[1725958341355,3.23067976,2361.0,2360.4,19.53]
[1725958341509,0.76233243,2360.9,2360.4,19.53]
[1725958341710,3.23067976,2360.8,2360.0,0.88739769]
[1725958341910,3.10590928,2360.7,2360.1,2.65208952]
[1725958342145,3.10590928,2360.7,2359.9,0.88739769]
[1725958342342,0.6336589,2360.6,2360.0,2.65172736]
[1725958342523,0.6336589,2360.6,2360.1,1.06069094]
[1725958342728,0.37395682,2360.5,2360.0,2.47877997]
[1725958342909,0.37395682,2360.5,2360.1,2.65230074]
[1725958343110,0.37395682,2360.5,2360.1,1.5913995]
[1725958343417,0.37395682,2360.5,2360.0,0.88739769]
[1725958343418,0.37395682,2360.5,2360.2,0.08472748]
[1725958345359,3.10590563,2360.9,2360.2,0.08472748]
[1725958346113,3.10590563,2360.9,2360.1,1.58060146]
[1725958346351,3.10590563,2360.9,2360.2,0.08472419]
[1725958347447,3.0,2360.9,2360.2,0.08472419]
[1725958347648,3.1058953,2361.1,2360.2,1.66532565]
[1725958347827,3.42895833,2361.1,2360.3,1.68819699]
[1725958348145,3.42895833,2361.1,2360.3,2.1302208]
[1725958348349,0.66596381,2361.0,2360.3,2.1302208]
[1725958351116,0.66596381,2361.0,2360.3,0.55]
[1725958351312,0.66596381,2361.0,2360.3,2.1302208]
[1725958351651,0.66596381,2361.0,2360.4,1.05341156]
[1725958351854,0.66596381,2361.0,2360.4,20.58341156]
[1725958352010,0.66596381,2361.0,2360.5,0.08471239]
[1725958352218,0.66596381,2361.0,2360.4,19.53]
[1725958352414,3.10589061,2361.1,2360.5,0.08471249]
[1725958353518,3.10589061,2361.1,2360.4,19.53]
[1725958355668,3.23067976,2361.0,2360.4,19.53]
[1725958355896,0.73955819,2360.9,2360.4,19.53]
[1725958356251,0.73955819,2360.9,2360.1,7.48]
[1725958356252,0.73955819,2360.9,2360.2,19.53]
[1725958356661,3.73955819,2360.9,2360.2,19.53]
[1725958358862,3.63365704,2360.9,2360.3,0.08471897]
[1725958359163,3.10589866,2361.1,2360.3,0.08471897]
[1725958359995,3.0,2361.1,2360.3,0.08471897]
[1725958360148,3.23067976,2361.4,2360.3,0.08471897]
[1725958360149,0.3,2361.0,2360.3,0.08471897]
[1725958360349,3.10588874,2361.3,2360.3,0.08471897]
[1725958360592,0.10588685,2361.2,2360.3,0.08471897]
[1725958360792,0.75013239,2361.2,2360.3,3.20599861]
[1725958361288,0.64424554,2361.2,2360.4,1.00193543]
[1725958361462,0.64424554,2361.2,2360.5,0.0847075]
[1725958361662,0.36442455,2361.1,2360.5,0.0847075]
[1725958363421,0.64424554,2361.2,2360.6,0.55]
[1725958363709,3.23067976,2361.6,2360.7,0.08470195]
[1725958364070,0.10587502,2361.5,2360.7,0.08470195]
[1725958364269,0.4395305,2361.5,2360.7,0.08470195]
[1725958365200,3.4395305,2361.5,2360.7,0.08470253]
[1725958365872,3.33365548,2361.5,2360.7,0.08470253]
[1725958366180,3.0,2361.4,2360.8,0.55]
[1725958366504,0.33336555,2361.4,2360.9,0.08469552]
[1725958366712,3.10587819,2361.7,2360.9,0.08469552]
[1725958368530,3.10586923,2361.7,2360.9,0.08469552]
[1725958368700,3.10586923,2361.7,2360.6,3.23067976]
[1725958368701,3.0,2361.7,2361.0,0.55]
[1725958368881,3.92306798,2361.7,2361.0,0.55]
[1725958369073,3.23067976,2361.6,2360.5,7.48]
[1725958369314,3.0,2361.5,2360.6,1.60308206]
[1725958369515,3.72596055,2361.5,2360.6,0.55]
[1725958370381,0.10587147,2361.4,2360.6,0.55]
[1725958371419,3.83183803,2361.5,2360.6,0.55]
[1725958371630,0.69566403,2361.4,2360.7,0.08470027]
[1725958373631,0.69566403,2361.4,2360.6,0.55]
[1725958373632,0.69566403,2361.4,2360.8,0.55]
[1725958374002,0.69566403,2361.4,2360.6,0.55]
[1725958374327,0.69566403,2361.4,2360.6,2.99394729]
[1725958374729,0.80153363,2361.4,2360.6,0.55]
[1725958375310,3.23067976,2361.2,2360.5,7.48]
[1725958375633,0.10588795,2361.1,2360.5,7.48]
[1725958375931,0.10588795,2361.1,2360.5,19.53]
[1725958377614,3.33657084,2361.4,2360.6,0.08471286]
[1725958377829,3.0,2361.3,2360.6,0.08471286]
[1725958378139,0.10589075,2361.2,2360.6,0.08471286]
[1725958378818,0.10589075,2361.2,2360.5,19.53]
[1725958379874,3.33657051,2361.2,2360.5,19.53]
[1725958380007,3.0,2361.1,2360.5,19.53]
[1725958380358,0.63365705,2361.0,2360.6,19.53]
[1725958382739,0.73955231,2361.0,2360.6,19.53]
[1725958383043,0.63365705,2361.0,2360.6,19.53]
[1725958383260,0.37395536,2360.9,2360.6,19.53]
[1725958386131,0.37395536,2360.9,2360.3,19.53]
[1725958386330,0.37395536,2360.9,2360.4,0.08471819]
[1725958386956,3.0,2361.1,2360.4,0.08471819]
[1725958387122,3.10588575,2361.3,2360.4,0.08471819]
[1725958388820,0.1058884,2361.2,2360.4,0.08471819]
[1725958389044,0.75013379,2361.2,2360.4,0.08471819]
[1725958389550,3.98081355,2361.2,2360.4,0.08471819]
[1725958389760,3.0,2361.1,2360.3,19.53]
[1725958389969,3.0,2361.1,2360.4,0.55]
[1725958392162,3.0,2361.1,2360.5,19.53]
[1725958392361,0.62306798,2361.0,2360.5,19.53]
[1725958394772,3.95964494,2361.0,2360.5,19.53]
[1725958394986,3.23067976,2360.8,2360.5,19.53]
[1725958395276,0.10590936,2360.7,2360.5,19.53]
[1725958395444,3.10590936,2360.7,2360.5,19.53]
[1725958396745,3.0,2360.7,2360.5,19.53]
[1725958396942,0.3,2360.7,2360.5,19.53]
[1725958397258,3.10590842,2360.9,2360.5,19.53]
[1725958398128,3.10590842,2360.9,2360.2,7.48]
[1725958398129,3.10590842,2360.9,2360.6,19.53]
[1725958398339,3.0,2360.9,2360.6,19.53]
[1725958398532,3.0,2361.1,2360.6,19.53]
[1725958398731,0.10589808,2361.0,2360.6,19.53]
[1725958400038,3.32306798,2361.1,2360.6,19.53]
[1725958400253,3.33656896,2361.0,2360.6,19.53]
[1725958400476,3.23067976,2360.8,2360.6,19.53]
[1725958400682,0.62306798,2360.7,2360.6,19.53]
[1725958400887,3.62306798,2360.7,2360.6,19.53]
[1725958401169,3.72897403,2360.7,2360.6,19.53]
[1725958401683,3.72897403,2360.7,2359.8,0.88739769]
[1725958401887,0.69596538,2360.6,2359.9,2.26544226]
[1725958402189,0.69596538,2360.6,2360.0,0.66309092]
[1725958402343,0.69596538,2360.6,2359.9,2.1285274]
[1725958402546,0.38018714,2360.5,2360.0,0.74780857]
[1725958402789,0.38018714,2360.5,2360.1,0.66305933]
[1725958402946,3.10590929,2360.9,2360.2,0.0847268]
[1725958404194,3.10590929,2360.9,2360.0,0.08472417]
[1725958404394,0.63365891,2360.8,2360.0,0.08472417]
[1725958406693,0.63365891,2360.8,2360.1,19.53]
[1725958406881,0.63365891,2360.8,2360.2,0.08472755]
[1725958407591,0.10590946,2360.7,2360.2,0.08472755]
[1725958407763,0.4798663,2360.7,2360.2,0.08472755]
[1725958407959,0.4798663,2360.7,2360.2,19.61472755]
[1725958408352,0.37395684,2360.7,2360.2,19.61472755]
[1725958408648,0.4798663,2360.7,2360.2,19.61472755]
[1725958410573,0.42180075,2360.7,2360.2,19.53]
[1725958411484,0.31589129,2360.7,2360.3,0.08472755]
[1725958411685,0.31589129,2360.7,2360.3,19.53]
[1725958412359,3.31589129,2360.7,2360.3,19.53]
[1725958412555,0.49130053,2360.6,2360.3,19.53]
[1725958412791,0.42180073,2360.7,2360.3,19.53]
[1725958412792,3.42180073,2360.7,2360.3,19.53]
[1725958413058,0.42180073,2360.7,2360.3,19.53]
[1725958415698,1.49120444,2360.6,2360.0,19.53]
[1725958415868,1.49120444,2360.6,2360.1,19.53]
[1725958417207,1.49120444,2360.8,2360.1,19.53]
[1725958417424,0.10591088,2360.7,2360.1,19.53]
[1725958418893,1.49120444,2360.6,2360.1,19.53]
[1725958420101,1.49120444,2360.8,2360.1,19.53]
[1725958420314,0.1059162,2360.7,2360.1,19.53]
[1725958421016,0.1059162,2360.7,2359.8,21.90860213]
[1725958421172,0.1059162,2360.7,2359.9,1.80333678]
[1725958421501,1.49120444,2360.6,2360.0,0.66312021]
[1725958421709,1.49120444,2360.6,2360.1,0.08473294]
[1725958422613,1.49120444,2360.6,2359.9,0.08473285]
[1725958422800,1.49120444,2360.6,2360.0,0.66313151]
[1725958423115,1.49120444,2360.6,2360.1,0.0847329]
[1725958423280,1.49120444,2360.6,2359.9,0.08473294]
[1725958424511,1.49120444,2360.4,2359.7,0.88739769]
[1725958424811,1.49120444,2360.4,2359.8,3.70018502]
[1725958424958,1.49120444,2360.4,2359.8,1.58345137]
[1725958425161,1.49120444,2360.4,2359.6,0.88739769]
[1725958425377,1.49120444,2360.4,2359.7,3.5435941]
[1725958425615,1.49120444,2360.4,2359.8,1.05564745]
[1725958425765,1.49120444,2360.6,2359.7,0.90447547]
[1725958425971,1.49120444,2360.6,2359.8,3.78488731]
[1725958426220,1.49120444,2360.6,2359.8,0.08473295]
[1725958426395,1.49120444,2360.6,2359.7,1.79187316]
[1725958426704,1.49120444,2360.6,2359.8,3.70005375]
[1725958426902,1.49120444,2360.6,2359.8,0.96405658]
[1725958427068,1.49120444,2360.6,2359.7,2.3223958]
[1725958427269,1.49120444,2360.6,2359.8,3.70005861]
[1725958427501,1.49120444,2360.6,2359.7,2.3223958]
[1725958427703,1.49120444,2360.6,2359.8,3.70000328]
[1725958427920,1.49120444,2360.8,2359.9,0.08473296]
[1725958428213,0.10591612,2360.7,2360.0,1.05555396]
[1725958428365,0.10591612,2360.7,2359.9,0.6152556]
[1725958428366,0.10591612,2360.7,2359.9,0.08473296]
[1725958428565,0.10591612,2360.7,2359.9,0.82875672]
[1725958429071,0.10591612,2360.7,2359.9,0.08473296]
[1725958429406,1.49120444,2360.6,2359.7,2.32238103]
[1725958429593,0.10591624,2360.5,2359.8,3.70709682]
[1725958429793,0.10591624,2360.5,2359.8,0.88517788]
[1725958430200,0.10591624,2360.5,2359.7,1.96790556]
[1725958430406,0.10591624,2360.5,2359.8,2.64605443]
[1725958430599,1.49120444,2360.6,2359.7,1.96790556]
[1725958430845,1.49120444,2360.6,2359.8,2.6460549]
[1725958431140,1.49120444,2360.6,2359.7,1.96790556]
[1725958431301,1.49120444,2360.6,2359.8,3.2576873]
[1725958431504,1.49120444,2360.6,2359.9,1.05843247]
[1725958431812,1.49120444,2360.6,2359.8,0.61164355]
[1725958432015,1.49120444,2360.6,2359.9,1.05842919]
[1725958432216,1.49120444,2360.6,2359.8,0.61164355]
[1725958432539,1.49120444,2360.6,2359.9,1.05842971]
[1725958432746,1.49120444,2360.6,2359.8,0.61164355]
[1725958432943,1.49120444,2360.6,2359.9,1.05845946]
[1725958433149,1.49120444,2360.6,2359.9,0.08473304]
[1725958433516,1.49120444,2360.6,2359.8,0.61164355]
[1725958433791,1.49120444,2360.6,2359.9,1.05856397]
[1725958433933,1.49120444,2360.6,2360.0,0.08473304]
[1725958434121,1.49120444,2360.6,2359.8,0.61164355]
[1725958434445,1.49120444,2360.6,2359.9,1.05856433]
[1725958434646,1.49120444,2360.6,2360.0,0.08473304]
[1725958434854,1.49120444,2360.6,2359.8,0.61164355]
[1725958435153,1.49120444,2360.6,2359.9,1.05867082]
[1725958435448,1.49120444,2360.6,2359.8,0.61164355]
[1725958435655,1.49120444,2360.6,2359.9,1.05877072]
[1725958435962,1.49120444,2360.6,2359.8,0.61164355]
[1725958436114,1.49120444,2360.6,2359.9,1.05876397]
[1725958436320,1.49120444,2360.6,2359.8,0.61164355]
[1725958436631,1.49120444,2360.4,2359.7,1.43739769]
[1725958436837,1.49120444,2360.4,2359.8,1.06891311]
[1725958437030,1.49120444,2360.4,2359.7,1.60340267]
[1725958437238,1.49120444,2360.4,2359.6,0.88739769]
[1725958437576,1.49120444,2360.4,2359.7,2.672355]
[1725958437722,1.49120444,2360.4,2359.6,1.6304847]
[1725958437921,1.49120444,2360.4,2359.7,2.67257305]
[1725958438158,1.49120444,2360.4,2359.8,1.06902922]
[1725958438360,1.49120444,2360.2,2359.5,2.21367659]
[1725958438561,1.49120444,2360.2,2359.6,2.67309806]
[1725958438859,1.49120444,2360.2,2359.7,1.06923922]
[1725958439037,1.49120444,2360.2,2359.5,2.21385059]
[1725958439234,1.49120444,2360.4,2359.6,4.97166942]
[1725958439459,1.49120444,2360.4,2359.7,2.6730754]
[1725958439663,1.49120444,2360.4,2359.8,1.1539735]
[1725958439821,1.49120444,2360.4,2359.8,0.08474334]
[1725958441299,1.49120444,2360.4,2359.7,2.21376169]
[1725958441457,1.49120444,2360.4,2359.8,2.67389133]
[1725958441663,1.49120444,2360.4,2359.9,1.0695543]
[1725958441960,1.49120444,2360.4,2359.7,1.6497659]
[1725958442169,1.49120444,2360.4,2359.8,2.67392995]
[1725958442370,1.49120444,2360.4,2359.7,1.6497659]
[1725958442589,1.49120444,2360.4,2359.8,2.67389063]
[1725958442742,1.49120444,2360.4,2359.7,0.88739769]
[1725958443062,1.49120444,2360.4,2359.8,2.67388965]
[1725958443270,1.49120444,2360.4,2359.7,0.88739769]
[1725958443469,1.49120444,2360.4,2359.8,2.67397323]
[1725958443791,1.49120444,2360.4,2359.7,0.88739769]
[1725958443968,1.49120444,2360.4,2359.8,2.67395731]
[1725958444170,1.49120444,2360.4,2359.7,0.88739769]
[1725958444352,1.49120444,2360.4,2359.8,2.67396282]
[1725958444558,1.49120444,2360.4,2359.7,0.88739769]
[1725958444773,1.49120444,2360.4,2359.8,2.67394932]
[1725958444979,1.49120444,2360.4,2359.7,0.88739769]
[1725958445191,1.49120444,2360.4,2359.8,2.67393997]
[1725958445504,1.49120444,2360.4,2359.7,0.88739769]
[1725958445671,1.49120444,2360.4,2359.8,2.67415515]
[1725958445869,1.49120444,2360.4,2359.7,0.88739769]
[1725958446069,1.49120444,2360.4,2359.8,2.67415116]
[1725958446274,1.49120444,2360.4,2359.9,1.06993845]
[1725958446469,0.10592345,2360.3,2359.7,0.88739769]
[1725958446670,0.10592345,2360.3,2359.8,2.67486468]
[1725958446858,0.10592345,2360.3,2359.8,0.08474344]
[1725958448076,1.49120444,2360.4,2359.9,1.06994673]
[1725958448419,1.49120444,2360.4,2359.7,0.88739769]
[1725958448573,1.49120444,2360.4,2359.8,2.67487182]
[1725958448772,1.49120444,2360.4,2359.9,1.06994873]
[1725958448991,1.49120444,2360.4,2359.7,0.88739769]
[1725958449304,1.49120444,2360.4,2359.8,2.6748763]
[1725958449473,1.49120444,2360.4,2359.9,1.07002241]
[1725958449672,1.49120444,2360.4,2359.7,0.88739769]
[1725958449903,0.10592748,2360.3,2359.8,2.67504997]
[1725958450211,1.49120444,2360.0,2359.6,0.88739769]
[1725958450410,1.49120444,2360.0,2359.4,8.81109653]
[1725958450411,1.49120444,2360.0,2359.5,0.88739769]
[1725958450563,1.49120444,2360.0,2359.6,1.07014287]
[1725958450904,1.49120444,2360.0,2359.4,8.36739769]
[1725958451209,1.49120444,2360.0,2359.5,2.67536266]
[1725958451364,0.10592748,2360.3,2359.6,2.67536266]
[1725958451559,1.49120444,2360.1,2359.5,0.88739769]
[1725958451800,1.49120444,2360.1,2359.6,2.6753727]
[1725958451984,1.49120444,2360.1,2359.5,0.88739769]
[1725958452186,1.49120444,2360.1,2359.6,2.67537232]
[1725958452494,1.49120444,2360.1,2359.5,0.88739769]
[1725958452678,1.49120444,2360.1,2359.6,2.67537827]
[1725958452881,1.49120444,2360.1,2359.5,0.88739769]
[1725958453078,1.49120444,2360.1,2359.6,2.67538217]
[1725958453414,1.49120444,2360.1,2359.5,0.88739769]
[1725958453595,1.49120444,2360.1,2359.6,2.67546966]
[1725958453804,1.49120444,2360.1,2359.5,0.88739769]
[1725958454105,0.10593673,2360.0,2359.6,2.707486]
[1725958454307,0.10593673,2360.0,2359.7,1.0829944]
[1725958454480,0.10593673,2360.0,2359.5,0.88739769]
[1725958454808,1.49120444,2359.9,2359.6,2.70746745]
[1725958455110,1.49120444,2359.9,2359.5,0.88739769]
[1725958455263,1.49120444,2359.9,2359.6,2.70390168]